fUST/lending_fUST_20250927
["ID","MTS","AMOUNT","RATE_DAILY","PERIOD"]
[387861854,1758931868323,-1029.29,0.00047945,120]
[387861856,1758931868333,-480.0,0.00047945,120]
[387861858,1758931868342,-480.0,0.00047945,120]
[387861860,1758931868352,-480.0,0.00047945,120]
[387861862,1758931868361,-571.33,0.00047945,120]
[387861864,1758931868371,-480.0,0.00047945,120]
[387861866,1758931868380,-1772.96,0.00047945,120]
[387861868,1758931868390,-604.34,0.00047945,120]
[387861870,1758931868399,-480.0,0.00047945,120]
[387861872,1758931868409,-1382.47,0.00047945,120]
[387861874,1758931868423,-480.0,0.00047945,120]
[387861876,1758931868434,-1069.13,0.00047945,120]
[387861878,1758931868443,-173.57696578,0.00047945,120]
[387861880,1758931868452,-480.0,0.00047945,120]
[387861882,1758931868462,-212.62,0.00047945,120]
[387861884,1758931868471,-622.73,0.00047945,120]
[387861886,1758931868480,-480.0,0.00047945,120]
[387861888,1758931868489,-865.78,0.00047945,120]
[387861890,1758931868499,-500.0,0.00047945,120]
[387861892,1758931868508,-480.0,0.00047945,120]
[387861894,1758931868518,-480.0,0.00047945,120]
[387861896,1758931868527,-480.0,0.00047945,120]
[387861898,1758931868537,-2497.39,0.00047945,120]
[387861900,1758931868546,-480.0,0.00047945,120]
[387861902,1758931868555,-480.0,0.00047945,120]
[387861904,1758931868565,-480.0,0.00047945,120]
[387861906,1758931868575,-480.0,0.00047945,120]
[387861908,1758931868584,-480.0,0.00047945,120]
[387861910,1758931868593,-3990.68,0.00047945,120]
[387861912,1758931868603,-480.0,0.00047945,120]
[387861914,1758931868613,-1497.79,0.00047945,120]
[387861916,1758931868623,-623.66,0.00047945,120]
[387861918,1758931868632,-480.0,0.00047945,120]
[387861920,1758931868642,-480.0,0.00047945,120]
[387861922,1758931868655,-279.07762003,0.00047945,120]
[387861924,1758931868665,-792.54,0.00047945,120]
[387861926,1758931868675,-480.0,0.00047945,120]
[387861928,1758931868685,-480.0,0.00047945,120]
[387861931,1758931868698,-480.0,0.00047945,120]
[387861932,1758931868708,-489.27473212,0.00047945,120]
[387861934,1758931868717,-480.0,0.00047945,120]
[387861935,1758931868727,-1571.66,0.00047945,120]
[387861936,1758931868737,-1012.15,0.00047945,120]
[387861937,1758931868746,-480.0,0.00047945,120]
[387861938,1758931868755,-582.02,0.00047945,120]
[387861939,1758931868765,-480.0,0.00047945,120]
[387861940,1758931868775,-1420.95,0.00047945,120]
[387861941,1758931868784,-1415.9,0.00047945,120]
[387861942,1758931868793,-571.53,0.00047945,120]
[387861943,1758931868803,-480.0,0.00047945,120]
[387861944,1758931868812,-480.0,0.00047945,120]
[387861945,1758931868821,-480.0,0.00047945,120]
[387861946,1758931868831,-661.82,0.00047945,120]
[387861947,1758931868840,-711.54,0.00047945,120]
[387861948,1758931868850,-608.9,0.00047945,120]
[387861949,1758931868860,-1357.32,0.00047945,120]
[387861950,1758931868869,-3543.12,0.00047945,120]
[387861951,1758931868878,-480.0,0.00047945,120]
[387861952,1758931868888,-1098.48,0.00047945,120]
[387861953,1758931868897,-500.0,0.00047945,14]
[387861955,1758931868906,-480.0,0.00047945,120]
[387861957,1758931868915,-480.0,0.00047945,120]
[387861959,1758931868925,-480.0,0.00047945,120]
[387861961,1758931868935,-1097.02,0.00047945,120]
[387861963,1758931868944,-512.00307658,0.00047945,120]
[387861965,1758931868954,-807.05,0.00047945,120]
[387861967,1758931868964,-480.0,0.00047945,120]
[387861969,1758931868974,-480.0,0.00047945,120]
[387861971,1758931868983,-1081.54,0.00047945,120]
[387861973,1758931868994,-480.0,0.00047945,120]
[387861975,1758931869003,-480.0,0.00047945,120]
[387861977,1758931869013,-9971.98,0.00047945,120]
[387861979,1758931869022,-480.0,0.00047945,120]
[387861981,1758931869031,-649.55,0.00047945,120]
[387861983,1758931869041,-4462.38,0.00047945,3]
[387861985,1758931869051,-10430.65,0.00047945,120]
[387861987,1758931869060,-480.0,0.00047945,120]
[387861989,1758931869069,-2702.06,0.00047945,120]
[387861991,1758931869079,-480.0,0.00047945,120]
[387861993,1758931869088,-480.0,0.00047945,120]
[387861995,1758931869098,-480.0,0.00047945,120]
[387861997,1758931869108,-480.0,0.00047945,120]
[387861999,1758931869117,-2055.04,0.00047945,120]
[387862001,1758931869127,-3405.64,0.00047945,120]
[387862003,1758931869137,-524.82,0.00047945,120]
[387862005,1758931869147,-480.0,0.00047945,120]
[387862007,1758931869158,-755.1,0.00047945,120]
[387862009,1758931869168,-642.28,0.00047945,120]
[387862011,1758931869178,-4483.5,0.00047945,120]
[387862013,1758931869188,-772.16,0.00047945,30]
[387862015,1758931869198,-760.25,0.00047945,120]
[387862017,1758931869208,-2365.79,0.00047945,120]
[387862019,1758931869218,-480.0,0.00047945,120]
[387862021,1758931869228,-811.62,0.00047945,120]
[387862023,1758931869238,-576.88,0.00047945,120]
[387862025,1758931869248,-679.43,0.00047945,120]
[387862027,1758931869258,-480.0,0.00047945,120]
[387862029,1758931869267,-811.86,0.00047945,120]
[387862031,1758931869278,-480.0,0.00047945,120]
[387862034,1758931869288,-3497.99,0.00047945,120]
[387862036,1758931869299,-546.05,0.00047945,120]
[387862038,1758931869308,-480.0,0.00047945,120]
[387862040,1758931869318,-480.0,0.00047945,120]
[387862042,1758931869328,-480.0,0.00047945,120]
[387862044,1758931869338,-480.0,0.00047945,120]
[387862045,1758931869348,-480.0,0.00047945,120]
[387862047,1758931869357,-2492.31,0.00047945,120]
[387862049,1758931869367,-981.92,0.00047945,120]
[387862051,1758931869377,-858.58,0.00047945,120]
[387862053,1758931869386,-480.0,0.00047945,120]
[387862055,1758931869395,-480.0,0.00047945,120]
[387862057,1758931869404,-536.78,0.00047945,120]
[387862059,1758931869417,-1743.2,0.00047945,120]
[387862061,1758931869428,-480.0,0.00047945,120]
[387862063,1758931869438,-480.0,0.00047945,120]
[387862065,1758931869447,-4717.61,0.00047945,120]
[387862067,1758931869456,-480.0,0.00047945,120]
[387862069,1758931869465,-370.56868404,0.00047945,120]
[387862071,1758931869474,-853.28,0.00047945,120]
[387862073,1758931869484,-165.31978548,0.00047945,120]
[387862075,1758931869493,-767.4,0.00047945,120]
[387862078,1758931869504,-842.14,0.00047945,120]
[387862080,1758931869514,-2623.9,0.00047945,30]
[387862082,1758931869524,-1203.55,0.00047945,120]
[387862084,1758931869533,-18460.88,0.00047945,120]
[387862086,1758931869543,-1092.42,0.00047945,120]
[387862088,1758931869552,-596.68,0.00047945,120]
[387862090,1758931869562,-5129.78,0.00047945,120]
[387862092,1758931869571,-869.5,0.00047945,120]
[387862094,1758931869581,-557.48,0.00047945,120]
[387862096,1758931869590,-750.93,0.00047945,120]
[387862098,1758931869600,-480.0,0.00047945,120]
[387862100,1758931869611,-480.0,0.00047945,120]
[387862102,1758931869621,-1759.3,0.00047945,120]
[387862104,1758931869630,-503.94,0.00047945,120]
[387862106,1758931869640,-942.05,0.00047945,120]
[387862108,1758931869649,-1400.99,0.00047945,120]
[387862110,1758931869660,-9594.99,0.00047945,120]
[387862112,1758931869669,-480.0,0.00047945,120]
[387862114,1758931869679,-988.16,0.00047945,120]
[387862116,1758931869688,-1293.22,0.00047945,120]
[387862118,1758931869698,-480.0,0.00047945,120]
[387862120,1758931869708,-512.41,0.00047945,120]
[387862121,1758931869718,-1484.46,0.00047945,120]
[387862124,1758931869727,-480.0,0.00047945,120]
[387862126,1758931869737,-1648.98,0.00047945,120]
[387862128,1758931869748,-480.0,0.00047945,120]
[387862130,1758931869757,-1870.12,0.00047945,120]
[387862132,1758931869767,-1799.49,0.00047945,120]
[387862133,1758931869776,-480.0,0.00047945,120]
[387862136,1758931869785,-480.0,0.00047945,120]
[387862137,1758931869795,-2180.83,0.00047945,21]
[387862140,1758931869805,-1278.33,0.00047945,120]
[387862142,1758931869815,-929.02,0.00047945,120]
[387862144,1758931869825,-668.55,0.00047945,120]
[387862146,1758931869834,-7070.83,0.00047945,120]
[387862148,1758931869844,-2531.33,0.00047945,120]
[387862150,1758931869853,-1838.84,0.00047945,120]
[387862152,1758931869863,-2097.19,0.00047945,120]
[387862154,1758931869873,-1130.74,0.00047945,120]
[387862156,1758931869882,-1770.1,0.00047945,120]
[387862158,1758931869892,-966.58,0.00047945,120]
[387862160,1758931869901,-2553.64,0.00047945,120]
[387862162,1758931869911,-1080.52,0.00047945,120]
[387862164,1758931869920,-2115.12,0.00047945,120]
[387862166,1758931869931,-480.0,0.00047945,120]
[387862168,1758931869940,-480.0,0.00047945,120]
[387862170,1758931869950,-1498.56,0.00047945,120]
[387862172,1758931869961,-480.0,0.00047945,120]
[387862174,1758931869970,-480.0,0.00047945,120]
[387862176,1758931869979,-480.0,0.00047945,120]
[387862178,1758931869989,-2085.3,0.00047945,120]
[387862180,1758931869999,-2256.75,0.00047945,120]
[387862182,1758931870009,-480.0,0.00047945,120]
[387862184,1758931870018,-480.0,0.00047945,120]
[387862186,1758931870028,-421.83209421,0.00047945,120]
[387862188,1758931870039,-890.94,0.00047945,120]
[387862190,1758931870048,-884.22,0.00047945,120]
[387862193,1758931870058,-9281.75,0.00047945,120]
[387862195,1758931870068,-574.04,0.00047945,120]
[387862197,1758931870078,-1701.24,0.00047945,120]
[387862199,1758931870087,-480.0,0.00047945,120]
[387862201,1758931870097,-546.43,0.00047945,120]
[387862203,1758931870106,-480.0,0.00047945,120]
[387862205,1758931870116,-1322.19,0.00047945,120]
[387862207,1758931870126,-822.45,0.00047945,120]
[387862209,1758931870135,-480.0,0.00047945,120]
[387862211,1758931870144,-2550.27,0.00047945,120]
[387862213,1758931870154,-200.0,0.00048,120]
[387862215,1758931870164,-1004.0,0.00048,120]
[387862217,1758931870173,-233.71402077,0.00048,120]
[387862219,1758931870183,-684.67,0.00048218,120]
[387862221,1758931870193,-1938.1,0.00048218,120]
[387862223,1758931870203,-480.0,0.00048218,120]
[387862225,1758931870213,-4350.71,0.00048218,120]
[387862227,1758931870223,-992.34,0.00048218,120]
[387862229,1758931870232,-480.0,0.00048219,120]
[387862231,1758931870242,-480.0,0.00048219,120]
[387862233,1758931870252,-480.0,0.00048219,120]
[387862235,1758931870262,-652.45,0.00048219,120]
[387862237,1758931870271,-480.0,0.00048219,120]
[387862239,1758931870281,-480.0,0.00048219,120]
[387862241,1758931870291,-508.74513094,0.00048219,120]
[387862243,1758931870301,-725.35,0.00048219,120]
[387862245,1758931870311,-487.12927309,0.00048219,120]
[387862247,1758931870321,-823.76,0.00048219,120]
[387862249,1758931870331,-480.0,0.00048219,120]
[387862251,1758931870341,-480.0,0.00048219,120]
[387862253,1758931870351,-751.19,0.00048219,120]
[387862255,1758931870361,-480.0,0.00048219,120]
[387862257,1758931870370,-582.06,0.00048219,120]
[387862259,1758931870379,-716.75,0.00048219,120]
[387862261,1758931870389,-480.0,0.00048219,120]
[387862263,1758931870399,-480.0,0.00048219,120]
[387862265,1758931870408,-847.29,0.00048219,120]
[387862268,1758931870424,-480.0,0.00048219,120]
[387862270,1758931870434,-480.0,0.00048219,120]
[387862272,1758931870445,-178.67247295,0.00048219,120]
[387862274,1758931870456,-499.45,0.00048219,120]
[387862276,1758931870466,-480.0,0.00048219,120]
[387862278,1758931870475,-606.53,0.00048219,120]
[387862280,1758931870485,-480.0,0.00048219,120]
[387862282,1758931870495,-480.0,0.00048219,120]
[387862284,1758931870504,-1099.68,0.00048219,120]
[387862286,1758931870514,-480.0,0.00048219,120]
[387862287,1758931870524,-480.0,0.00048219,120]
[387862289,1758931870534,-1147.9,0.00048219,120]
[387862291,1758931870544,-1064.79,0.00048219,120]
[387862293,1758931870555,-747.18,0.00048219,120]
[387862296,1758931870565,-480.0,0.00048219,120]
[387862298,1758931870575,-480.0,0.00048219,120]
[387862300,1758931870586,-480.0,0.00048219,120]
[387862302,1758931870596,-1462.51,0.00048219,120]
[387862304,1758931870606,-394.79889571,0.00048219,120]
[387862306,1758931870616,-480.0,0.00048219,120]
[387862308,1758931870625,-641.87,0.00048219,120]
[387862310,1758931870635,-480.0,0.00048219,120]
[387862312,1758931870645,-480.0,0.00048219,120]
[387862314,1758931870655,-263.53722938,0.00048219,120]
[387862316,1758931870664,-1214.82,0.00048219,120]
[387862318,1758931870673,-480.0,0.00048219,120]
[387862320,1758931870684,-602.93930764,0.00048219,120]
[387862322,1758931870694,-278.73698921,0.00048219,120]
[387862324,1758931870704,-480.0,0.00048219,120]
[387862326,1758931870714,-523.68,0.00048219,120]
[387862328,1758931870723,-1047.97,0.00048219,120]
[387862330,1758931870733,-971.16,0.00048219,120]
[387862332,1758931870742,-853.87,0.00048219,120]
[387862334,1758931870752,-499.91158901,0.00048219,120]
[387862336,1758931870762,-480.0,0.00048219,120]
[387862338,1758931870772,-985.42,0.00048219,120]
[387862340,1758931870781,-1999.9,0.00048219,120]
[387862343,1758931870791,-480.0,0.00048219,120]
[387862345,1758931870801,-694.17,0.00048219,120]
[387862347,1758931870810,-1309.64,0.00048219,120]
[387862349,1758931870820,-480.0,0.00048219,120]
[387862351,1758931870829,-480.0,0.00048219,120]
[387862353,1758931870839,-480.0,0.00048219,120]
[387862355,1758931870848,-506.55,0.00048219,120]
[387862357,1758931870858,-1015.97,0.00048219,120]
[387862359,1758931870867,-836.45,0.00048219,120]
[387862361,1758931870877,-801.6,0.00048219,120]
[387862363,1758931870887,-480.0,0.00048219,120]
[387862365,1758931870896,-480.0,0.00048219,120]
[387862367,1758931870905,-501.98,0.00048219,120]
[387862369,1758931870915,-572.34,0.00048219,120]
[387862371,1758931870924,-480.0,0.00048219,120]
[387862373,1758931870934,-880.49,0.00048219,120]
[387862375,1758931870944,-480.0,0.00048219,120]
[387862377,1758931870953,-480.0,0.00048219,120]
[387862379,1758931870963,-480.0,0.00048219,120]
[387862381,1758931870972,-620.92869708,0.00048219,120]
[387862383,1758931870982,-516.1,0.00048219,120]
[387862385,1758931870991,-765.11,0.00048219,120]
[387862387,1758931871001,-560.56,0.00048219,120]
[387862389,1758931871010,-480.0,0.00048219,120]
[387862391,1758931871020,-480.0,0.00048219,120]
[387862393,1758931871029,-480.0,0.00048219,120]
[387862395,1758931871039,-768.16,0.00048219,120]
[387862397,1758931871049,-480.0,0.00048219,120]
[387862399,1758931871059,-480.0,0.00048219,120]
[387862402,1758931871070,-480.0,0.00048219,120]
[387862404,1758931871079,-480.0,0.00048219,120]
[387862406,1758931871089,-533.64,0.00048219,120]
[387862408,1758931871098,-1366.15,0.00048219,120]
[387862410,1758931871108,-480.0,0.00048219,120]
[387862412,1758931871118,-384.04434266,0.00048219,120]
[387862413,1758931871127,-1008.69,0.00048219,120]
[387862414,1758931871136,-218.53707738,0.00048219,120]
[387862415,1758931871146,-480.0,0.00048219,120]
[387862416,1758931871155,-545.16,0.00048219,120]
[387862417,1758931871166,-545.16,0.00048219,120]
[387862418,1758931871175,-614.42312691,0.00048219,120]
[387862419,1758931871186,-480.0,0.00048219,120]
[387862420,1758931871195,-961.32,0.00048219,120]
[387862421,1758931871205,-529.38,0.00048219,120]
[387862422,1758931871215,-480.0,0.00048219,120]
[387862423,1758931871224,-480.0,0.00048219,120]
[387862424,1758931871234,-2103.06,0.00048219,120]
[387862425,1758931871244,-1138.42,0.00048219,120]
[387862426,1758931871253,-1891.6,0.00048219,120]
[387862427,1758931871263,-1748.61,0.00048219,120]
[387862428,1758931871272,-480.0,0.00048219,120]
[387862429,1758931871282,-480.0,0.00048219,120]
[387862430,1758931871291,-1014.65,0.00048219,120]
[387862431,1758931871300,-480.0,0.00048219,120]
[387862432,1758931871310,-690.89,0.00048219,120]
[387862433,1758931871319,-598.16,0.00048219,120]
[387862434,1758931871329,-532.28316133,0.00048219,120]
[387862435,1758931871338,-480.0,0.00048219,120]
[387862436,1758931871348,-480.0,0.00048219,120]
[387862437,1758931871358,-483.95,0.00048219,120]
[387862438,1758931871367,-480.0,0.00048219,120]
[387862439,1758931871377,-1029.29,0.00048219,120]
[387862440,1758931871387,-480.0,0.00048219,120]
[387862441,1758931871397,-480.0,0.00048219,120]
[387862442,1758931871407,-480.0,0.00048219,120]
[387862443,1758931871421,-571.33,0.00048219,120]
[387862444,1758931871432,-480.0,0.00048219,120]
[387862445,1758931871442,-1772.96,0.00048219,120]
[387862446,1758931871452,-604.34,0.00048219,120]
[387862447,1758931871461,-480.0,0.00048219,120]
[387862448,1758931871471,-1382.47,0.00048219,120]
[387862449,1758931871480,-480.0,0.00048219,120]
[387862450,1758931871489,-1069.13,0.00048219,120]
[387862451,1758931871499,-236.68343114,0.00048219,120]
[387862452,1758931871508,-212.62,0.00048219,120]
[387862453,1758931871518,-622.73,0.00048219,120]
[387862454,1758931871528,-480.0,0.00048219,120]
[387862455,1758931871537,-865.78,0.00048219,120]
[387862456,1758931871547,-500.0,0.00048219,120]
[387862457,1758931871556,-480.0,0.00048219,120]
[387862458,1758931871565,-480.0,0.00048219,120]
[387862459,1758931871575,-480.0,0.00048219,120]
[387862460,1758931871585,-2497.39,0.00048219,120]
[387862461,1758931871595,-480.0,0.00048219,120]
[387862462,1758931871604,-480.0,0.00048219,120]
[387862463,1758931871778,-480.0,0.00048219,120]
[387862464,1758931871788,-480.0,0.00048219,120]
[387862465,1758931871797,-3990.68,0.00048219,120]
[387862466,1758931871806,-480.0,0.00048219,120]
[387862467,1758931871816,-403.2845836,0.00048219,120]
[387862468,1758931871825,-1497.79,0.00048219,120]
[387862469,1758931871834,-623.66,0.00048219,120]
[387862470,1758931871843,-480.0,0.00048219,120]
[387862471,1758931871852,-480.0,0.00048219,120]
[387862472,1758931871862,-792.54,0.00048219,120]
[387862473,1758931871871,-480.0,0.00048219,120]
[387862474,1758931871880,-480.0,0.00048219,120]
[387862475,1758931871889,-480.0,0.00048219,120]
[387862476,1758931871899,-480.0,0.00048219,120]
[387862477,1758931871908,-1571.66,0.00048219,120]
[387862478,1758931871917,-1012.15,0.00048219,120]
[387862479,1758931871926,-480.0,0.00048219,120]
[387862480,1758931871936,-582.02,0.00048219,120]
[387862481,1758931871946,-480.0,0.00048219,120]
[387862482,1758931871955,-1420.95,0.00048219,120]
[387862483,1758931871965,-1415.9,0.00048219,120]
[387862484,1758931871974,-571.53,0.00048219,120]
[387862485,1758931871983,-480.0,0.00048219,120]
[387862486,1758931871992,-480.0,0.00048219,120]
[387862487,1758931872001,-480.0,0.00048219,120]
[387862488,1758931872011,-661.82,0.00048219,120]
[387862489,1758931872020,-711.54,0.00048219,120]
[387862490,1758931872029,-608.9,0.00048219,120]
[387862491,1758931872039,-1357.32,0.00048219,120]
[387862492,1758931872048,-3543.12,0.00048219,120]
[387862493,1758931872057,-480.0,0.00048219,120]
[387862494,1758931872066,-1098.48,0.00048219,120]
[387862495,1758931872076,-500.0,0.00048219,14]
[387862496,1758931872085,-480.0,0.00048219,120]
[387862498,1758931872095,-480.0,0.00048219,120]
[387862499,1758931872104,-480.0,0.00048219,120]
[387862501,1758931872114,-1097.02,0.00048219,120]
[387862502,1758931872124,-807.05,0.00048219,120]
[387862504,1758931872133,-480.0,0.00048219,120]
[387862505,1758931872143,-413.19635746,0.00048219,120]
[387862507,1758931872153,-1081.54,0.00048219,120]
[387862508,1758931872162,-480.0,0.00048219,120]
[387862510,1758931872172,-480.0,0.00048219,120]
[387862512,1758931872183,-9971.98,0.00048219,120]
[387862513,1758931872200,-480.0,0.00048219,120]
[387862514,1758931872210,-649.55,0.00048219,120]
[387862515,1758931872220,-4462.38,0.00048219,3]
[387862516,1758931872229,-10430.65,0.00048219,120]
[387862517,1758931872239,-480.0,0.00048219,120]
[387862518,1758931872255,-2702.06,0.00048219,120]
[387862520,1758931872264,-480.0,0.00048219,120]
[387862521,1758931872273,-480.0,0.00048219,120]
[387862522,1758931872283,-327.71441391,0.00048219,120]
[387862523,1758931872292,-480.0,0.00048219,120]
[387862524,1758931872301,-2055.04,0.00048219,120]
[387862525,1758931872313,-3405.64,0.00048219,120]
[387862526,1758931872326,-524.82,0.00048219,120]
[387862527,1758931872335,-480.0,0.00048219,120]
[387862528,1758931872345,-755.1,0.00048219,120]
[387862529,1758931872354,-642.28,0.00048219,120]
[387862530,1758931872364,-772.16,0.00048219,30]
[387862531,1758931872373,-4483.5,0.00048219,120]
[387862532,1758931872382,-760.25,0.00048219,120]
[387862533,1758931872392,-2365.79,0.00048219,120]
[387862534,1758931872401,-480.0,0.00048219,120]
[387862535,1758931872411,-811.62,0.00048219,120]
[387862536,1758931872424,-576.88,0.00048219,120]
[387862537,1758931872434,-679.43,0.00048219,120]
[387862538,1758931872444,-480.0,0.00048219,120]
[387862539,1758931872454,-811.86,0.00048219,120]
[387862540,1758931872464,-480.0,0.00048219,120]
[387862541,1758931872473,-3497.99,0.00048219,120]
[387862542,1758931872482,-546.05,0.00048219,120]
[387862543,1758931872492,-480.0,0.00048219,120]
[387862544,1758931872501,-480.0,0.00048219,120]
[387862545,1758931872511,-480.0,0.00048219,120]
[387862546,1758931872521,-480.0,0.00048219,120]
[387862547,1758931872531,-480.0,0.00048219,120]
[387862548,1758931872541,-2492.31,0.00048219,120]
[387862549,1758931872550,-981.92,0.00048219,120]
[387862550,1758931872559,-858.58,0.00048219,120]
[387862551,1758931872568,-480.0,0.00048219,120]
[387862552,1758931872578,-480.0,0.00048219,120]
[387862553,1758931872588,-536.78,0.00048219,120]
[387862554,1758931872598,-1743.2,0.00048219,120]
[387862555,1758931872608,-480.0,0.00048219,120]
[387862556,1758931872617,-480.0,0.00048219,120]
[387862557,1758931872627,-4717.61,0.00048219,120]
[387862558,1758931872636,-480.0,0.00048219,120]
[387862559,1758931872645,-853.28,0.00048219,120]
[387862560,1758931872654,-767.4,0.00048219,120]
[387862561,1758931872664,-842.14,0.00048219,120]
[387862562,1758931872673,-2623.9,0.00048219,30]
[387862563,1758931872683,-18460.88,0.00048219,120]
[387862564,1758931872693,-1203.55,0.00048219,120]
[387862565,1758931872703,-1092.42,0.00048219,120]
[387862566,1758931872712,-596.68,0.00048219,120]
[387862567,1758931872721,-5129.78,0.00048219,120]
[387862568,1758931872731,-869.5,0.00048219,120]
[387862569,1758931872740,-557.48,0.00048219,120]
[387862570,1758931872750,-750.93,0.00048219,120]
[387862571,1758931872759,-480.0,0.00048219,120]
[387862572,1758931872768,-480.0,0.00048219,120]
[387862573,1758931872778,-1759.3,0.00048219,120]
[387862574,1758931872787,-503.94,0.00048219,120]
[387862575,1758931872797,-942.05,0.00048219,120]
[387862576,1758931872806,-1400.99,0.00048219,120]
[387862577,1758931872815,-9594.99,0.00048219,120]
[387862578,1758931872824,-480.0,0.00048219,120]
[387862579,1758931872834,-988.16,0.00048219,120]
[387862580,1758931872843,-1293.22,0.00048219,120]
[387862581,1758931872852,-480.0,0.00048219,120]
[387862582,1758931872862,-512.41,0.00048219,120]
[387862583,1758931872871,-1484.46,0.00048219,120]
[387862584,1758931872881,-480.0,0.00048219,120]
[387862585,1758931872890,-1648.98,0.00048219,120]
[387862586,1758931872899,-480.0,0.00048219,120]
[387862587,1758931872908,-1870.12,0.00048219,120]
[387862588,1758931872917,-1799.49,0.00048219,120]
[387862589,1758931872926,-480.0,0.00048219,120]
[387862590,1758931872936,-480.0,0.00048219,120]
[387862591,1758931872946,-2180.83,0.00048219,21]
[387862592,1758931872955,-1278.33,0.00048219,120]
[387862593,1758931872965,-929.02,0.00048219,120]
[387862594,1758931872975,-668.55,0.00048219,120]
[387862595,1758931872984,-7070.83,0.00048219,120]
[387862596,1758931872993,-2531.33,0.00048219,120]
[387862597,1758931873003,-1838.84,0.00048219,120]
[387862598,1758931873012,-2097.19,0.00048219,120]
[387862599,1758931873021,-1130.74,0.00048219,120]
[387862600,1758931873030,-1770.1,0.00048219,120]
[387862601,1758931873039,-966.58,0.00048219,120]
[387862602,1758931873049,-2553.64,0.00048219,120]
[387862603,1758931873058,-1080.52,0.00048219,120]
[387862604,1758931873068,-2115.12,0.00048219,120]
[387862605,1758931873077,-480.0,0.00048219,120]
[387862606,1758931873088,-480.0,0.00048219,120]
[387862607,1758931873098,-1498.56,0.00048219,120]
[387862608,1758931873107,-480.0,0.00048219,120]
[387862609,1758931873116,-480.0,0.00048219,120]
[387862610,1758931873126,-480.0,0.00048219,120]
[387862611,1758931873134,-2085.3,0.00048219,120]
[387862612,1758931873144,-2256.75,0.00048219,120]
[387862613,1758931873153,-480.0,0.00048219,120]
[387862614,1758931873163,-480.0,0.00048219,120]
[387862615,1758931873172,-890.94,0.00048219,120]
[387862616,1758931873182,-884.22,0.00048219,120]
[387862617,1758931873191,-9281.75,0.00048219,120]
[387862618,1758931873201,-574.04,0.00048219,120]
[387862619,1758931873210,-1701.24,0.00048219,120]
[387862620,1758931873219,-233.91831811,0.00048219,120]
[387862621,1758931873228,-546.43,0.00048219,120]
[387862622,1758931873238,-480.0,0.00048219,120]
[387862623,1758931873248,-1322.19,0.00048219,120]
[387862624,1758931873258,-822.45,0.00048219,120]
[387862625,1758931873267,-498.04478954,0.00048219,120]
[387862626,1758931873277,-219.1,0.00048249,120]
[387862627,1758931873287,-371.50011352,0.00048395,28]
[387862628,1758931873297,-2000.0,0.000484,45]
[387862629,1758931873306,-3249.66705225,0.000484,120]
[387862630,1758931873316,-684.67,0.00048492,120]
[387862631,1758931873325,-1938.1,0.00048492,120]
[387862632,1758931873335,-480.0,0.00048492,120]